[Event "53rd Mar Del Plata Open 2024"]
[Site "Mar Del Plata"]
[Date "2024.03.26"]
[Round "4.4"]
[White "Moreno Perez, Tobias Sebastian"]
[Black "Spata, German"]
[Result "1/2-1/2"]
[ECO "A13"]
[WhiteElo "2246"]
[BlackElo "2421"]
[Annotator "TA"]
[PlyCount "140"]
[EventDate "2024.03.23"]
[EventType "swiss"]
[EventCountry "ARG"]
[SourceTitle "playchess.com"]
[Source "ChessBase"]
[SourceQuality "1"]
[TimeControl "5400+30"]

{[%evp 9,140,9,14,16,8,10,27,22,22,21,21,10,9,4,4,4,43,0,0,-17,-10,-33,0,0,0,10,8,13,17,22,24,21,80,67,115,122,131,121,260,271,324,322,293,218,503,249,237,237,235,45,32,18,268,255,300,271,456,450,396,256,359,354,350,322,294,333,366,372,423,234,455,309,244,264,233,247,202,0,0,0,12,0,0,0,0,0,0,0,0,0,0,0,0,0,0,0,0,0,29973,29974,29975,29976,29976,29977,29977,29978,29978,0,0,0,29978,29979,29979,29980,29979,0,0,0,0,0,0,0,0,0,0,0,0,-8,-8,-8,0,0,0]} 1. Nf3 {[%emt 0:00:14]} d5 {[%emt 0:00:46]} 2. c4 {[%emt 0:00:22]} e6 {[%emt 0:01:05]} 3. g3 {[%emt 0:00:22]} Nf6 {[%emt 0:01:06]} 4. Bg2 {[%emt 0:00:19]} dxc4 {[%emt 0:02:12]} 5. Qa4+ {[%emt 0:02:48]} Bd7 {[%emt 0:00:52]} 6. Qxc4 {[%emt 0:00:20]} c5 {[%emt 0:00:12]} 7. O-O {[%emt 0:07:51]} b5 {[%emt 0:10:59]} 8. Qc2 {[%emt 0:01:20] Weiß hat minimalen Vorteil.} Nc6 {[%emt 0:02:15] Wehrt Ne5 ab} 9. a4 {[%emt 0:04:15]} b4 {[%emt 0:09:26]} 10. d3 {[%emt 0:02:47]} Rc8 {[%emt 0:03:22]} 11. Nbd2 {[%emt 0:02:03]} Be7 {[%emt 0:10:33]} 12. Nc4 {[%emt 0:08:31]} O-O {[%emt 0:02:27]} 13. Bd2 {[%emt 0:11:58]} Nd5 {[%emt 0:03:22]} 14. Rfc1 {[%emt 0:02:02]} Nb6 {[%emt 0:06:07]} 15. Nce5 {[%emt 0:16:04]} (15. Nfe5 {ist vielschichtiger.} Nxc4 16. Nxd7 Na3 17. Rxa3 Nd4 18. Qd1) 15... Nxe5 {[%emt 0:08:15]} 16. Nxe5 {[%emt 0:00:28]} Bf6 {[%emt 0:01:26]} 17. Nxd7 {[%emt 0:03:03]} Qxd7 {[%emt 0:00:31]} 18. a5 $1 {[%emt 0:00:42]} Nd5 {[%emt 0:00:13]} 19. Qb3 {[%emt 0:03:27]} Ne7 {[%emt 0:10:58]} 20. Be3 $36 {[%emt 0:03:37][%mdl 2048] Weiss steht aktiver.} Qb5 {[%emt 0:01:41]} (20... Qd6 $11) 21. Qc4 $16 {[%emt 0:02:48]} Qxc4 {[%emt 0:05:59]} (21... Qd7 $14) 22. Rxc4 {[%emt 0:00:12]} Bxb2 {[%emt 0:01:37]} 23. Rb1 {[%emt 0:00:12] Weiß steht aktiver.} Ba3 {[%emt 0:08:05]} (23... Bd4 $16) 24. Bxc5 $18 {[%emt 0:01:24]} Rc7 {[%emt 0:00:32]} 25. a6 {[%emt 0:02:41]} (25. Bxb4 Rxc4 26. Bxe7 (26. dxc4 Rb8 $14) (26. Bxa3 Rc7 $11) 26... Rc1+ 27. Rxc1 Bxc1 28. Bxf8 Kxf8 $16) 25... Rd8 {[%emt 0:04:15]} 26. Bb7 {[%emt 0:04:08] Ein starkes Läuferpaar.} ({Keinesfalls} 26. Bxb4 Rxc4 27. Bxa3 (27. dxc4 Bxb4 28. Rxb4 Rd1+ 29. Bf1 Nc6 $18) 27... Rc7 $18) 26... Nc6 {[%emt 0:01:45] [#]} (26... Rxc5 {war angesagt.} 27. Rxc5 Rd6) 27. Bxa7 {[%emt 0:00:58]} Rxb7 {[%emt 0:00:06]} 28. axb7 {[%emt 0:00:54]} Nxa7 {[%emt 0:00:08]} 29. Rc7 $2 {[%emt 0:01:40]} (29. Rd4 $1 $18 {[%cal Rd4d8]} Rb8 30. Rd6) 29... Rb8 $14 {[%emt 0:00:19]} 30. d4 {[%emt 0:00:14][%mdl 1024] Droht e4. Weiss hat Kompensation.} Kf8 $2 {[%emt 0:01:13]} (30... h6 $11 {und Schwarz ist OK.}) 31. e4 $18 {[%emt 0:00:24]} Ke8 {[%emt 0:00:32]} 32. d5 {[%emt 0:00:25]} Kd8 $2 {[%emt 0:01:34]} (32... exd5 {ist eine bessere Verteidigung.} 33. exd5 Kd8 34. Rxf7 Nb5 35. Rxg7 Nd6 36. Rxh7 Rxb7 37. Rxb7 Nxb7) 33. Rxf7 {[%emt 0:00:15]} exd5 {[%emt 0:00:19]} 34. exd5 {[%emt 0:00:17]} Nb5 {[%emt 0:00:32] Es drohte d6} 35. Rxg7 {[%emt 0:07:00]} Nd6 {[%emt 0:01:38]} 36. Rxh7 {[%emt 0:00:07]} Rxb7 {[%emt 0:00:12]} 37. Rxb7 {[%emt 0:00:05]} Nxb7 {[%emt 0:00:03]} 38. h4 {[%emt 0:01:42]} Nc5 {[%emt 0:00:30]} 39. h5 {[%emt 0:00:31] h6 wäre nun fies.} Ke7 $2 {[%emt 0:00:33]} (39... Ke8 {kämpft weiter.} 40. h6 Kf7) 40. g4 {[%emt 0:00:50]} b3 {[%emt 0:01:19] [#]} 41. d6+ $1 {[%emt 0:01:41]} Kxd6 {[%emt 0:01:05]} 42. h6 {[%emt 0:00:08] h7 ist eine echte Drohung.} Bb4 {[%emt 0:00:02] [#]} 43. Kf1 $2 {[%emt 0:02:39]} (43. g5 $1 $18 {[%cal Rg5g6] Schwarz muss nun g6 beachten.} Ke7 44. g6) 43... Ke6 $11 {[%emt 0:01:03]} 44. Ke2 {[%emt 0:01:11]} (44. h7 $5 Bc3 $8 45. Ke2 $11) 44... Kf7 {[%emt 0:00:20]} 45. f4 {[%emt 0:00:17] Droht stark f5.} Bc3 {[%emt 0:00:28]} 46. g5 {[%emt 0:04:07]} Kg6 {[%emt 0:00:37]} 47. Kf3 {[%emt 0:00:35]} b2 {[%emt 0:00:46]} 48. Kg4 {[%emt 0:00:22]} Ne4 {[%emt 0:00:33]} 49. f5+ {[%emt 0:00:39]} Kf7 {[%emt 0:00:32]} 50. h7 {[%emt 0:03:21]} Kg7 {[%emt 0:00:05]} 51. g6 {[%emt 0:00:58]} Nd2 {[%emt 0:00:24]} 52. Rh1 {[%emt 0:00:02][%cal Rh7h8] Sehr scharf!} Kf8 $1 {[%emt 0:01:00]} (52... b1=B 53. h8=Q#) (52... Kh8 53. Re1) 53. Kg5 {[%emt 0:01:07]} Ne4+ $2 {[%emt 0:00:26][%mdl 8192]} (53... Bh8 $11) 54. Kf4 {[%emt 0:00:18]} Nd2 {[%emt 0:00:14]} 55. h8=Q+ {[%emt 0:00:33]} ({Schwächer ist} 55. h8=N Nb3 56. Rb1 (56. Nf7 $2 Nc1 $19) 56... Bxh8 $11) 55... Bxh8 {[%emt 0:00:03]} 56. Rxh8+ {[%emt 0:00:07] KR-KN} Ke7 {[%emt 0:00:17]} 57. Rh7+ {[%emt 0:00:03]} Ke8 {[%emt 0:00:21]} 58. Rh8+ $2 {[%emt 0:00:50]} (58. Rh1 b1=Q 59. Rxb1 Nxb1 60. Ke5 Nc3 61. Ke6 Ne2 62. g7 Nf4+ 63. Kf6) 58... Ke7 {[%emt 0:00:09]} 59. Rh7+ $2 {[%emt 0:00:03][%mdl 8192]} (59. Rb8 $11 b1=R 60. Rxb1 Nxb1 61. Ke5) 59... Ke8 $1 {[%emt 0:00:03]} 60. Rb7 {[%emt 0:00:17]} b1=Q {[%emt 0:00:04]} 61. Rxb1 {[%emt 0:00:03]} Nxb1 {[%emt 0:00:05] [#] KN-KPP} 62. f6 $2 {[%emt 0:00:31]} (62. Ke5 $1 {setzt Matt} Nd2 63. Ke6 Nf3 64. g7 Ng5+ 65. Kf6 Nh7+ 66. Kg6 Nf8+ 67. gxf8=Q+ (67. gxf8=R+ Kxf8 68. Kf6 Ke8 69. Kg7 Ke7 70. f6+ Ke6 71. f7 Ke5) 67... Kxf8 68. Kf6) 62... Nd2 {[%emt 0:01:52] Die Stellung ist ausgeglichen.} 63. f7+ {[%emt 0:01:59]} (63. Ke5 $5 Nf3+ $8 64. Kf4 $11) 63... Ke7 {[%emt 0:01:00]} 64. Kg5 {[%emt 0:00:26] Droht Matt per Kh6.} Ne4+ {[%emt 0:00:25]} 65. Kh6 {[%emt 0:00:35] jetzt Kg7 und aus.} Kf8 {[%emt 0:01:33]} 66. Kh7 {[%emt 0:00:27] Weiss droht g7+ und Matt.} Ng5+ {[%emt 0:00:16]} 67. Kh8 {[%emt 0:00:01]} Nxf7+ {[%emt 0:00:30]} 68. Kh7 {[%emt 0:00:01]} Ng5+ {[%emt 0:00:21]} 69. Kh8 {[%emt 0:00:01]} Nf7+ {[%emt 0:00:32]} 70. Kh7 {[%emt 0:00:02] Zielt auf g7+ ab.} Ng5+ {[%emt 0:00:09] Gewichteter Fehlerwert: Weiß=0.38/Schwarz=0.41.  Verlustzug:     	---       	Schwarz=2     Gewinn verpasst:   	Weiß=2     	---        Fehler:       	Weiß=1     	Schwarz=6     Ungenau:       	Weiß=3     	Schwarz=1     OK:         	Weiß=18    	Schwarz=25    Bester:       	Weiß=7     	Schwarz=11    Stark:        	Weiß=1     	Schwarz=2} 1/2-1/2

[Event "53rd Mar Del Plata Open 2024"]
[Site "Mar Del Plata"]
[Date "2024.03.26"]
[Round "4.5"]
[White "Villordo, Matias"]
[Black "Marrujo Pardo, Mauricio Emmanuel"]
[Result "0-1"]
[ECO "C45"]
[WhiteElo "2041"]
[BlackElo "2337"]
[Annotator "RC"]
[PlyCount "54"]
[EventDate "2024.03.23"]
[EventType "swiss"]
[EventCountry "ARG"]
[SourceTitle "playchess.com"]
[Source "ChessBase"]
[SourceQuality "1"]
[TimeControl "5400+30"]

1. e4 {[%emt 0:00:04]} e5 {[%emt 0:00:05]} 2. Nf3 {[%emt 0:00:19]} Nc6 {[%emt 0:00:05]} 3. d4 {[%emt 0:00:29]} exd4 {[%emt 0:00:22]} 4. Nxd4 {[%emt 0:00:36]} Bc5 {[%emt 0:01:20]} 5. Nb3 {[%emt 0:01:28]} Bb6 {[%emt 0:00:42]} 6. Nc3 {[%emt 0:01:40]} Nf6 {[%emt 0:13:26]} 7. Qe2 {[%emt 0:03:58]} O-O {[%emt 0:02:15]} 8. Bg5 {[%emt 0:01:26]} h6 {[%emt 0:10:48]} 9. Bh4 {[%emt 0:06:12]} Nd4 {[%emt 0:06:29]} 10. Qd3 {[%emt 0:13:14]} Nxb3 {[%emt 0:05:55]} 11. axb3 {[%emt 0:06:06]} d6 {[%emt 0:20:33]} 12. O-O-O {[%emt 0:18:01]} g5 {[%emt 0:19:28]} 13. Bg3 {[%emt 0:02:44]} Ng4 {[%emt 0:00:10]} 14. Qd2 {[%emt 0:13:02]} Be6 {[%emt 0:00:30]} 15. h4 {[%emt 0:09:43]} Qf6 {[%emt 0:00:48]} 16. hxg5 {[%emt 0:01:45]} hxg5 {[%emt 0:00:05]} 17. Rh5 {[%emt 0:01:11]} Rfe8 {[%emt 0:07:33]} 18. Rxg5+ {[%emt 0:02:51]} Kf8 {[%emt 0:00:02]} 19. e5 {[%emt 0:03:50]} dxe5 {[%emt 0:02:39]} 20. Ne4 {[%emt 0:03:37]} Qh6 {[%emt 0:02:30]} 21. Be2 {[%emt 0:01:08]} Rad8 {[%emt 0:00:53]} 22. Qxd8 {[%emt 0:01:50]} Rxd8 {[%emt 0:00:01]} 23. Rxd8+ {[%emt 0:00:08]} Ke7 {[%emt 0:00:00]} 24. Rd2 {[%emt 0:01:21]} Bxf2 {[%emt 0:05:11]} 25. Rxg4 {[%emt 0:05:09]} Bxg4 {[%emt 0:00:18]} 26. Bxg4 {[%emt 0:00:59]} Be3 {[%emt 0:00:06]} 27. Kd1 {[%emt 0:00:38]} Bxd2 {[%emt 0:00:28]} 0-1

[Event "53rd Mar Del Plata Open 2024"]
[Site "Mar Del Plata"]
[Date "2024.03.26"]
[Round "4.6"]
[White "Aranda, Juan Manuel"]
[Black "Pierrot, Facundo"]
[Result "1-0"]
[ECO "D02"]
[WhiteElo "2102"]
[BlackElo "2326"]
[Annotator "RC"]
[PlyCount "79"]
[EventDate "2024.03.23"]
[EventType "swiss"]
[EventCountry "ARG"]
[SourceTitle "playchess.com"]
[Source "ChessBase"]
[SourceQuality "1"]
[TimeControl "5400+30"]

1. Nf3 {[%emt 0:00:12]} Nc6 {[%emt 0:00:33]} 2. d4 {[%emt 0:01:08]} d5 {[%emt 0:00:06]} 3. g3 {[%emt 0:01:37]} Bf5 {[%emt 0:00:46]} 4. Bg2 {[%emt 0:00:20]} Nf6 {[%emt 0:00:08]} 5. O-O {[%emt 0:00:31]} e6 {[%emt 0:00:13]} 6. c4 {[%emt 0:01:23]} Be7 {[%emt 0:02:42]} 7. Ne5 {[%emt 0:05:46]} Nxe5 {[%emt 0:10:20]} 8. dxe5 {[%emt 0:00:07]} Ne4 {[%emt 0:00:03]} 9. Be3 {[%emt 0:13:47]} O-O {[%emt 0:04:24]} 10. g4 {[%emt 0:03:35]} Bg6 {[%emt 0:00:49]} 11. cxd5 {[%emt 0:01:13]} exd5 {[%emt 0:03:19]} 12. f4 {[%emt 0:11:11]} f5 {[%emt 0:00:29]} 13. Nc3 {[%emt 0:02:00]} Nxc3 {[%emt 0:06:16]} 14. bxc3 {[%emt 0:00:05]} c6 {[%emt 0:00:04]} 15. c4 {[%emt 0:01:41]} dxc4 {[%emt 0:02:00]} 16. Qa4 {[%emt 0:01:37]} fxg4 {[%emt 0:02:41]} 17. Qxc4+ {[%emt 0:00:12]} Kh8 {[%emt 0:00:06]} 18. Rad1 {[%emt 0:01:49]} Qc8 {[%emt 0:05:41]} 19. Bc5 {[%emt 0:06:29]} Qc7 {[%emt 0:07:58]} 20. e6 {[%emt 0:08:08]} Rad8 {[%emt 0:07:25]} 21. Rxd8 {[%emt 0:05:58]} Qxd8 {[%emt 0:00:08]} 22. e4 {[%emt 0:04:17]} Bh5 {[%emt 0:06:05]} 23. f5 {[%emt 0:05:13]} b6 {[%emt 0:08:15]} 24. Bxe7 {[%emt 0:03:39]} Qxe7 {[%emt 0:00:06]} 25. Qxc6 {[%emt 0:00:11]} Qa3 {[%emt 0:03:23]} 26. Qd5 {[%emt 0:03:42]} g3 {[%emt 0:02:21]} 27. f6 {[%emt 0:06:50]} Qe3+ {[%emt 0:11:54]} 28. Kh1 {[%emt 0:00:12]} Qh6 {[%emt 0:02:49]} 29. fxg7+ {[%emt 0:05:25]} Kxg7 {[%emt 0:00:09]} 30. Qe5+ {[%emt 0:01:04]} Kg8 {[%emt 0:02:05]} 31. Qxg3+ {[%emt 0:01:11]} Bg6 {[%emt 0:02:33]} 32. e7 {[%emt 0:01:23]} Re8 {[%emt 0:00:07]} 33. Qb3+ {[%emt 0:01:31]} Kh8 {[%emt 0:00:50]} 34. Qc3+ {[%emt 0:00:09]} Kg8 {[%emt 0:00:04]} 35. Qc4+ {[%emt 0:00:09]} Kh8 {[%emt 0:00:06]} 36. Qd4+ {[%emt 0:00:04]} Kg8 {[%emt 0:00:05]} 37. Qd5+ {[%emt 0:00:11]} Kh8 {[%emt 0:00:04]} 38. Qe5+ {[%emt 0:00:07]} Kg8 {[%emt 0:00:08]} 39. Qe6+ {[%emt 0:00:09]} Kh8 {[%emt 0:00:09]} 40. Qf6+ {[%emt 0:06:14]} 1-0

[Event "53rd Mar Del Plata Open 2024"]
[Site "Mar Del Plata"]
[Date "2024.03.25"]
[Round "4.7"]
[White "Kiselev, Vitalii"]
[Black "Carcamo, Matias"]
[Result "1-0"]
[ECO "B01"]
[WhiteElo "2519"]
[BlackElo "2102"]
[Annotator "TA"]
[PlyCount "77"]
[EventDate "2024.03.23"]
[EventType "swiss"]
[EventCountry "ARG"]
[SourceTitle "playchess.com"]
[Source "ChessBase"]
[SourceQuality "1"]
[TimeControl "5400+30"]

{[%evp 9,77,44,75,43,91,65,65,64,88,32,33,25,31,0,6,0,6,10,16,0,38,17,55,37,59,57,55,39,98,92,100,70,58,39,32,6,18,13,67,52,55,70,78,84,75,69,87,77,73,71,160,144,182,179,175,122,135,119,129,106,147,132,212,162,532,533,608,607,1049,1055]} 1. e4 {[%emt 0:20:32]} d5 {[%emt 0:00:14]} 2. exd5 {[%emt 0:00:10]} Qxd5 {[%emt 0:00:07]} 3. Nf3 {[%emt 0:00:10]} Nf6 {[%emt 0:00:09]} 4. d4 {[%emt 0:01:17]} Bg4 {[%emt 0:01:58]} 5. Be2 {[%emt 0:00:07]} c6 {[%emt 0:00:06]} 6. h3 {[%emt 0:00:24]} Bh5 {[%emt 0:00:21]} (6... Bxf3 $14 7. Bxf3 Qd6) 7. O-O $16 {[%emt 0:00:28]} e6 {[%emt 0:02:17]} 8. c4 {[%emt 0:00:09] White is slightly better.} Qa5 {[%emt 0:00:17]} 9. Nbd2 {[%emt 0:09:28]} (9. Bf4 $16) 9... Nbd7 $14 {[%emt 0:00:35][%cal Bb8d7,Bd7f8,Bf8g6][%mdl 32]} 10. a3 {[%emt 0:00:44]} Be7 {[%emt 0:00:26]} 11. b4 {[%emt 0:00:19]} Qc7 {[%emt 0:00:01]} ({Not} 11... Bxb4 $2 12. Nb3 Qc7 13. axb4 $18) 12. Bb2 {[%emt 0:00:16]} O-O {[%emt 0:00:30]} 13. Qb3 {[%emt 0:01:31]} Rfd8 {[%emt 0:00:13]} 14. Rfe1 {[%emt 0:05:36]} Nf8 {[%emt 0:01:28]} 15. Bf1 {[%emt 0:00:43]} Bg6 {[%emt 0:01:50]} 16. Ne5 {[%emt 0:03:43]} N6d7 {[%emt 0:00:46]} 17. Nxg6 {[%emt 0:01:05]} Nxg6 {[%emt 0:00:05]} 18. g3 {[%emt 0:01:45]} Bf6 {[%emt 0:00:27]} (18... a5 $14) 19. Ne4 $16 {[%emt 0:00:54]} Be7 {[%emt 0:00:33]} 20. Bg2 {[%emt 0:00:46]} Nf6 {[%emt 0:00:04]} 21. Nd2 {[%emt 0:05:27][%cal Be4d2,Bd2f1,Bf1e3][%mdl 32]} a5 {[%emt 0:00:35]} 22. Rac1 {[%emt 0:04:49]} axb4 {[%emt 0:01:22]} 23. axb4 {[%emt 0:00:05]} Qb6 {[%emt 0:00:05]} (23... h5 $11) 24. Bc3 {[%emt 0:00:21]} Qc7 {[%emt 1:28:01]} 25. Nf1 {[%emt 0:03:53]} Ra7 {[%emt 0:00:00]} 26. Ne3 {[%emt 0:01:21]} Rda8 {[%emt 0:00:00]} 27. d5 {[%emt 0:00:36]} Ra3 {[%emt 0:00:00]} 28. Qb2 {[%emt 0:00:36]} Ra2 {[%emt 0:00:00]} 29. Qb1 {[%emt 0:00:02]} cxd5 {[%emt 0:00:00]} ({Black should try} 29... Bd6) 30. cxd5 {[%emt 0:01:57]} Qb6 {[%emt 0:00:00]} 31. dxe6 {[%emt 0:00:34]} fxe6 {[%emt 0:00:00]} 32. Rc2 {[%emt 0:02:22]} (32. Nc2 $18) 32... Rxc2 {[%emt 0:00:00]} 33. Qxc2 {[%emt 0:00:15]} Rc8 {[%emt 0:00:00]} 34. Qb3 {[%emt 0:00:11][%cal Oc3d4]} Kh8 {[%emt 0:00:00]} 35. Rd1 {[%emt 0:03:11]} Nh5 {[%emt 0:00:00]} (35... e5 $16 36. Rd3 Qc7) 36. Kh2 {[%emt 0:02:32] Hoping for Bd4.} Nxg3 $2 {[%emt 0:00:00]} (36... Rf8) 37. fxg3 $18 {[%emt 0:00:31] White is clearly winning.} Bd6 {[%emt 0:00:00]} 38. Be1 {[%emt 0:01:06][%cal Oe3c4] [#] Nc4! would now be deadly.} (38. Qxe6 $2 {too greedy.} Bxg3+ (38... Rxc3 $2 39. Rxd6 $18) 39. Kxg3 Qxe6 $19) 38... h5 {[%emt 0:00:00]} 39. Nc4 {[%emt 0:00:24] Weighted Error Value: White=0.15 (very precise) /Black=0.38.  Mistake:       	White=2     	Black=6      Inaccurate:     	White=1     	Black=4      OK:         	White=10    	Black=6      Best:        	White=1     	Black=3} (39. Qxe6 $2 {is the wrong capture.} Bxg3+ 40. Bxg3 Qxe6 $19) 1-0

[Event "53rd Mar Del Plata Open 2024"]
[Site "Mar Del Plata"]
[Date "2024.03.26"]
[Round "4.8"]
[White "Espinoza Palomino, Willyam"]
[Black "Campos, Maria Jose"]
[Result "1/2-1/2"]
[ECO "C92"]
[WhiteElo "2400"]
[BlackElo "2224"]
[Annotator "TA"]
[PlyCount "98"]
[EventDate "2024.03.23"]
[EventType "swiss"]
[EventCountry "ARG"]
[SourceTitle "playchess.com"]
[Source "ChessBase"]
[SourceQuality "1"]
[TimeControl "5400+30"]

{[%evp 20,98,43,25,20,14,15,17,34,12,14,0,28,12,50,43,48,49,35,31,55,57,71,45,40,54,49,0,0,0,0,0,-8,-16,-8,-99,-4,-98,-18,-126,-82,-74,-73,-64,-112,-102,-102,-103,-106,-80,-91,-102,-99,-111,-97,-94,-97,-104,-104,-101,-21,-21,-9,-10,-10,-10,0,-8,0,0,0,0,0,0,0,0,0,0,0,0,0]} 1. e4 {[%emt 0:00:03]} e5 {[%emt 0:01:05]} 2. Nf3 {[%emt 0:00:11]} Nc6 {[%emt 0:00:29]} 3. Bb5 {[%emt 0:00:44][%cal Bf1b5,Bb5a4,Ba4b3][%mdl 32]} a6 {[%emt 0:00:15]} 4. Ba4 {[%emt 0:00:10]} Nf6 {[%emt 0:00:08]} 5. O-O {[%emt 0:01:22]} Be7 {[%emt 0:00:48]} 6. Re1 {[%emt 0:00:23]} b5 {[%emt 0:00:23]} 7. Bb3 {[%emt 0:00:07]} d6 {[%emt 0:00:18]} 8. c3 {[%emt 0:00:48]} O-O {[%emt 0:00:50]} 9. h3 {[%emt 0:00:28]} Be6 {[%emt 0:00:51]} 10. d4 {[%emt 0:03:30]} Bxb3 {[%emt 0:00:47]} 11. Qxb3 {[%emt 0:08:22]} Re8 {[%emt 0:02:13]} 12. Nbd2 {[%emt 0:19:25]} exd4 {[%emt 0:05:10]} 13. cxd4 {[%emt 0:00:15]} Bf8 {[%emt 0:01:05]} 14. Qc3 {[%emt 0:27:03]} Ne7 {[%emt 0:12:45]} 15. b4 {[%emt 0:05:43]} d5 {[%emt 0:11:22]} 16. e5 {[%emt 0:00:57]} Ne4 {[%emt 0:04:03]} 17. Qc2 {[%emt 0:03:33]} (17. Nxe4 dxe4 18. Rxe4 Nd5 $11) 17... f5 {[%emt 0:02:17]} 18. exf6 {[%emt 0:13:30]} Nxf6 {[%emt 0:00:15]} 19. Bb2 {[%emt 0:04:11]} Qd6 {[%emt 0:03:43]} 20. a3 {[%emt 0:00:12]} Qf4 {[%emt 0:03:54]} 21. Ne5 {[%emt 0:01:15][%cal Od2f3] Weiß steht aktiver.} Nf5 $1 {[%emt 0:12:26]} 22. Ndf3 {[%emt 0:00:24][%cal Og2g4]} Nd6 $1 {[%emt 0:02:16]} 23. g3 {[%emt 0:03:58]} (23. Bc1 $14 {kam in Betracht.} Qf5 24. Qc6 (24. Qxc7 Rec8 $11)) 23... Qf5 $11 {[%emt 0:01:18]} 24. Qxf5 {[%emt 0:00:02]} (24. Qxc7 Rac8 25. Qb6 Nc4 26. Nxc4 dxc4 $17) 24... Nxf5 {[%emt 0:00:05]} 25. Rec1 {[%emt 0:00:23]} Bd6 {[%emt 0:01:18]} 26. Bc3 {[%emt 0:04:02]} Ne4 {[%emt 0:01:40]} 27. Nd3 {[%emt 0:01:18]} (27. Kg2 $11) 27... h5 {[%emt 0:09:19]} (27... Rf8 $1 $17 {[%cal Of5g3] ...Nfxg3! ist eine echte Drohung.} 28. Nde5 Nxc3 29. Rxc3 h6 (29... Nxd4 30. Nxd4 Bxe5 31. Rd3 $17)) 28. Be1 {[%emt 0:01:21] [#]} (28. Bb2 $11) 28... g5 {[%emt 0:03:12]} (28... Rf8 $1 $17 {[%cal Rf5g3] Weiss muss nun ...Nfxg3! beachten.} 29. Kg2 Bxg3) 29. Bc3 {[%emt 0:00:42]} (29. g4 $11 Ng7 30. gxh5) 29... g4 {[%emt 0:09:29]} 30. hxg4 {[%emt 0:00:02]} hxg4 {[%emt 0:00:06]} 31. Nh2 {[%emt 0:00:59]} Nxc3 $1 {[%emt 0:01:26]} 32. Rxc3 {[%emt 0:00:01]} Nxd4 {[%emt 0:00:24]} 33. Kg2 {[%emt 0:00:02]} Re4 {[%emt 0:00:52]} 34. Re1 {[%emt 0:01:17]} Rae8 {[%emt 0:02:32]} 35. Rxe4 {[%emt 0:00:03]} Rxe4 {[%emt 0:00:12]} ({Natürlich nicht} 35... dxe4 $6 36. Nc5 $11) 36. Nf4 {[%emt 0:01:05]} Bxf4 {[%emt 0:02:44]} 37. gxf4 $17 {[%emt 0:00:34][%mdl 4096] Endspiel. KRN-KRN} Ne2 {[%emt 0:01:41]} 38. Rxc7 {[%emt 0:00:20]} Nxf4+ {[%emt 0:00:10]} ({Jedoch nicht} 38... Rxf4 39. Rc2 Re4 40. Kf1 $11) 39. Kg3 {[%emt 0:00:30] [#]} Ne2+ {[%emt 0:00:30]} ({Besser ist} 39... Nh5+ $1 $17 40. Kg2 d4) 40. Kg2 $11 {[%emt 0:00:07] Die Stellung ist ausgeglichen.} Rc4 {[%emt 0:01:21]} 41. Ra7 {[%emt 0:00:19]} Nf4+ {[%emt 0:02:57]} 42. Kg3 {[%emt 0:00:01]} Ne2+ {[%emt 0:00:08]} 43. Kg2 {[%emt 0:00:01]} d4 {[%emt 0:00:18] ...d3 wäre nun fies.} 44. Nxg4 {[%emt 0:00:07]} d3 {[%emt 0:00:46]} 45. Nf6+ {[%emt 0:00:39]} Kf8 {[%emt 0:00:07] Droht ...Rd4 und aus.} 46. Rd7 {[%emt 0:01:04]} Rd4 {[%emt 0:00:55]} (46... Rf4 $5 47. Nh7+ $8 Kg8 $11) 47. Nh7+ {[%emt 0:00:11]} Ke8 {[%emt 0:00:10]} 48. Nf6+ {[%emt 0:00:02]} Kf8 {[%emt 0:00:11]} 49. Nh7+ {[%emt 0:00:26]} Ke8 {[%emt 0:00:06] Gewichteter Fehlerwert: Weiß=0.19 (sehr präzise) /Schwarz=0.17 (sehr präzise) .  Fehler:       	Weiß=4     	Schwarz=3     Ungenau:       	Weiß=1     	Schwarz=3     OK:         	Weiß=18    	Schwarz=10    Bester:       	Weiß=3     	Schwarz=3     Stark:        	---       	Schwarz=3} 1/2-1/2